bitfinex-derivatives/quotes_ETHF0:USTF0_20250926
["timestamp","ask_amount","ask_price","bid_price","bid_amount"]
[1758851423698,0.3462,3947.4,3947.2,0.4557]
[1758851423902,0.3462,3947.4,3946.7,0.266]
[1758851424114,0.59817,3947.5,3947.1,0.45572]
[1758851424314,0.3462,3947.4,3947.1,0.45572]
[1758851424812,0.1425,3947.5,3947.1,0.45572]
[1758851425007,0.1425,3947.5,3946.7,0.266]
[1758851425008,0.3462,3947.8,3947.6,0.45565]
[1758851425214,0.3462,3947.8,3947.7,0.341]
[1758851425407,0.3462,3947.8,3947.6,0.45565]
[1758851425604,0.3462,3947.8,3947.1,0.341]
[1758851427016,0.1425,3947.5,3947.4,0.45568]
[1758851427316,0.3462,3947.5,3947.4,0.45568]
[1758851427615,0.3462,3947.5,3947.4,0.70568]
[1758851428608,0.3462,3947.5,3947.4,0.25]
[1758851428809,0.4887,3947.5,3947.4,0.25]
[1758851429113,5.1425,3947.5,3946.7,0.45576]
[1758851429314,5.1425,3947.5,3946.4,0.341]
[1758851429315,0.1425,3947.0,3946.4,0.341]
[1758851429505,0.3462,3946.7,3946.1,0.341]
[1758851430124,0.3591,3947.4,3946.5,0.1473]
[1758851430312,0.59818,3947.5,3947.1,0.3471]
[1758851430612,1.91048116,3947.5,3946.4,0.4558]
[1758851430814,0.3591,3946.7,3946.4,0.4558]
[1758851431117,0.3591,3946.7,3946.2,0.80292]
[1758851431310,0.1376,3947.0,3946.2,0.45582]
[1758851431311,0.3591,3946.9,3946.2,0.45582]
[1758851431617,0.3591,3946.1,3945.7,0.45587]
[1758851431815,0.3591,3946.1,3945.3,0.3471]
[1758851432008,0.55527152,3946.0,3945.9,0.3471]
[1758851432214,0.55527152,3946.0,3945.6,0.45589]
[1758851432519,0.3591,3945.8,3945.6,0.80299]
[1758851432712,0.55527152,3945.9,3945.6,0.80299]
[1758851432713,0.91437152,3945.7,3945.6,0.80299]
[1758851432909,0.55527152,3945.7,3945.6,0.80299]
[1758851433216,0.45581,3946.3,3945.8,0.45586]
[1758851433417,0.5552099,3946.2,3945.8,0.45586]
[1758851433608,0.3591,3946.0,3945.8,0.45586]
[1758851433915,0.3591,3946.0,3945.1,0.3471]
[1758851433916,0.3591,3945.8,3945.1,0.3471]
[1758851434133,0.5552099,3945.7,3945.6,0.80298]
[1758851434315,0.3591,3946.1,3945.8,0.3471]
[1758851434517,0.3591,3945.9,3945.8,0.3471]
[1758851434711,0.91424362,3945.9,3945.8,0.3471]
[1758851434914,0.3591,3945.8,3945.5,0.4559]
[1758851435216,0.3591,3945.6,3945.5,0.803]
[1758851435417,0.91424362,3945.6,3945.5,0.803]
[1758851435620,0.91424362,3945.6,3945.0,0.4908]
[1758851435815,0.3591,3945.4,3945.0,0.1437]
[1758851436022,0.3591,3945.4,3945.2,0.3471]
[1758851436237,0.46005797,3945.8,3945.0,0.1437]
[1758851436418,0.55530895,3945.7,3945.5,0.1473]
[1758851436617,0.10095797,3945.8,3945.6,0.45589]
[1758851436817,0.55529734,3945.7,3945.6,0.80299]
[1758851438125,0.0253,3946.2,3945.8,1.13966]
[1758851438425,0.0253,3946.2,3946.1,0.80293]
[1758851439623,0.3591,3947.4,3947.2,0.4557]
[1758851439925,0.3591,3947.4,3947.3,0.3471]
[1758851440125,0.3591,3947.4,3947.2,0.4557]
[1758851440424,0.3591,3947.5,3947.2,0.8028]
[1758851440721,0.3591,3947.6,3947.2,0.4557]
[1758851440919,0.3591,3947.5,3947.2,0.8028]
[1758851441115,0.11997262,3947.6,3947.2,0.8028]
[1758851441322,0.3591,3947.6,3947.2,0.8028]
[1758851441521,0.45566,3947.7,3947.2,0.8028]
[1758851441925,0.3591,3947.6,3947.2,0.8028]
[1758851442122,0.3591,3947.4,3947.3,0.3471]
[1758851442433,0.3591,3946.9,3946.3,0.3471]
[1758851442830,0.3591,3946.9,3945.7,41.066]
[1758851442831,0.3591,3946.9,3946.7,0.3471]
[1758851443125,0.1376,3947.0,3946.7,0.3471]
[1758851443325,0.3591,3946.9,3946.7,0.3471]
[1758851443525,0.1376,3947.0,3946.7,0.3471]
[1758851443827,0.1376,3947.0,3946.6,0.80287]
[1758851443828,0.3591,3946.9,3946.6,0.80287]
[1758851444025,0.1376,3947.0,3946.7,0.3471]
[1758851444321,0.3591,3946.9,3946.4,0.45579]
[1758851444723,0.3591,3946.9,3945.9,0.45585]
[1758851444724,0.45581,3946.4,3945.9,0.45585]
[1758851444919,0.3591,3946.2,3945.9,0.45585]
[1758851445118,0.45581,3946.4,3945.9,0.45585]
[1758851445419,0.3591,3946.1,3945.7,0.80298]
[1758851445726,0.3591,3946.1,3945.5,0.1473]
[1758851445727,0.3591,3945.9,3945.5,0.4559]
[1758851445917,0.1376,3946.0,3945.5,0.4559]
[1758851446120,0.3591,3945.9,3945.6,0.3471]
[1758851446322,0.3591,3945.9,3945.7,0.3471]
[1758851446520,0.3591,3945.8,3945.1,0.3471]
[1758851446718,0.3591,3945.9,3945.3,0.80303]
[1758851446923,0.95255,3946.0,3945.4,0.80301]
[1758851447227,0.45586,3945.9,3945.4,0.45591]
[1758851447427,0.45586,3945.9,3945.5,0.3471]
[1758851447615,0.3591,3945.7,3945.5,0.3471]
[1758851447822,0.3591,3945.7,3945.2,0.45593]
[1758851448127,0.3591,3945.3,3944.8,0.45597]
[1758851448424,0.3591,3945.3,3944.9,0.3471]
[1758851448632,0.12043279,3945.3,3944.6,0.45601]
[1758851448826,0.3591,3945.2,3944.6,0.45601]
[1758851449025,0.3591,3945.2,3944.5,0.4944]
[1758851449229,0.3591,3945.2,3944.6,0.3471]
[1758851449529,0.4967,3945.0,3944.5,0.45602]
[1758851449723,0.4967,3945.0,3944.2,0.266]
[1758851450026,0.45592,3945.4,3944.7,0.45598]
[1758851450325,0.90856229,3945.3,3944.5,0.45601]
[1758851450526,0.90856229,3945.3,3944.1,0.266]
[1758851450527,1.00541229,3945.2,3944.6,0.456]
[1758851450724,0.3591,3945.0,3944.6,0.8031]
[1758851450924,0.3591,3944.8,3944.6,0.8031]
[1758851451122,0.3591,3945.1,3944.6,0.8031]
[1758851451324,0.3591,3944.9,3944.4,0.45603]
[1758851451621,0.3591,3944.7,3944.4,0.3471]
[1758851451827,0.456,3944.7,3944.4,0.3471]
[1758851452024,0.1376,3945.0,3944.4,0.3471]
[1758851452025,0.3591,3944.9,3944.4,0.3471]
[1758851452228,0.54910312,3944.8,3944.1,0.3471]
[1758851452428,0.54910312,3944.7,3944.1,0.3471]
[1758851452631,0.3591,3944.9,3944.1,0.3471]
[1758851452819,0.54910311,3944.8,3944.1,0.3471]
[1758851453022,0.90820311,3944.7,3944.5,0.80311]
[1758851453227,0.1376,3945.0,3944.5,0.80311]
[1758851453417,0.3591,3944.8,3944.5,0.80311]
[1758851453623,0.3591,3944.6,3944.3,0.45604]
[1758851453824,0.3591,3944.6,3944.0,0.4944]
[1758851453825,0.1376,3944.5,3944.0,0.1473]
[1758851454017,0.3591,3944.5,3944.4,0.80312]
[1758851454626,0.3591,3944.2,3944.1,0.45607]
[1758851454837,0.54899177,3944.2,3943.9,0.80318]
[1758851455032,0.59363,3944.5,3943.9,0.80318]
[1758851455232,0.45604,3944.3,3943.9,0.3471]
[1758851455444,0.54875849,3944.2,3943.9,0.80318]
[1758851455726,2.1594033,3945.0,3944.0,0.3471]
[1758851455934,0.5487384,3944.9,3944.8,0.3471]
[1758851456136,0.3591,3945.5,3944.8,0.3471]
[1758851456336,0.3591,3945.8,3945.4,0.45591]
[1758851456533,0.3591,3945.6,3945.5,0.45589]
[1758851456721,0.90769212,3945.6,3945.5,0.45589]
[1758851457126,0.90769212,3945.6,3945.5,0.80299]
[1758851457434,0.45592,3945.4,3944.8,0.45597]
[1758851457639,0.45592,3945.4,3944.8,0.80307]
[1758851457640,0.3591,3945.2,3944.8,0.80307]
[1758851457839,0.3591,3945.4,3944.6,0.3471]
[1758851458032,0.54875011,3945.3,3945.2,0.80303]
[1758851458338,0.54875011,3945.3,3944.5,0.1473]
[1758851458339,0.90785011,3945.3,3944.5,0.1473]
[1758851458639,0.90785011,3945.3,3944.1,0.3471]
[1758851458640,0.3591,3944.9,3944.1,0.3471]
[1758851458834,0.3591,3944.6,3943.7,0.3471]
[1758851459034,0.3591,3944.4,3944.2,0.80314]
[1758851459431,0.45602,3944.6,3943.7,0.3471]
[1758851459642,0.6865912,3944.5,3943.1,0.3471]
[1758851459842,0.6865912,3944.5,3941.9,11.4079]
[1758851459843,0.3591,3943.9,3942.6,0.3471]
[1758851460137,0.5489912,3943.8,3943.0,0.4971]
[1758851460338,0.9136912,3943.8,3943.1,0.361]
[1758851460535,0.5489912,3943.7,3943.2,0.81716]
[1758851460731,0.5489912,3943.7,3943.3,0.45615]
[1758851460937,0.5489912,3943.7,3943.5,0.361]
[1758851461234,0.5489912,3943.7,3943.6,0.361]
[1758851461441,0.1376,3944.5,3943.7,0.45611]
[1758851461642,0.3647,3944.3,3943.5,0.1361]
[1758851461843,0.54881235,3944.2,3944.1,0.361]
[1758851462031,0.3647,3944.8,3944.1,0.361]
[1758851462232,0.54868247,3944.7,3944.6,0.361]
[1758851462639,0.1484,3945.5,3944.7,0.361]
[1758851462843,0.1484,3945.5,3943.7,0.361]
[1758851462844,0.82073,3944.4,3943.7,0.361]
[1758851463039,0.54868252,3944.3,3943.5,0.1361]
[1758851463239,0.1484,3944.5,3943.6,0.361]
[1758851463542,0.54853736,3944.4,3944.2,0.81705]
[1758851463739,0.3647,3944.7,3944.3,0.361]
[1758851463946,0.4801,3944.5,3943.7,0.3323]
[1758851464136,1.0045699,3944.4,3943.4,0.266]
[1758851464437,0.79776,3944.2,3943.5,0.45612]
[1758851464640,0.1384,3944.0,3943.3,0.78846]
[1758851464842,0.5485299,3943.9,3943.3,0.78846]
[1758851465038,0.3417,3944.0,3943.1,0.3323]
[1758851465244,0.1384,3944.5,3943.2,0.45617]
[1758851465245,0.45608,3944.1,3943.2,0.45617]
[1758851465444,1.0283708,3944.0,3943.5,0.45613]
[1758851465634,0.8899708,3943.9,3943.6,0.3323]
[1758851465837,0.1384,3944.5,3943.1,0.45617]
[1758851465838,0.45608,3944.0,3943.1,0.45617]
[1758851466037,0.1384,3943.5,3943.0,0.3323]
[1758851466242,0.3417,3943.3,3942.9,0.48156236]
[1758851466447,0.1384,3943.5,3942.9,0.48156236]
[1758851466650,0.3417,3943.3,3942.9,0.81386236]
[1758851466847,0.3417,3943.2,3942.9,0.81386236]
[1758851467045,0.3417,3943.2,3942.9,0.35766236]
[1758851467250,0.3417,3943.2,3942.9,0.02536236]
[1758851467445,0.4801,3943.0,3942.9,0.02536236]
[1758851467749,0.3417,3943.0,3942.9,0.02536236]
[1758851468548,0.4801,3943.0,3942.9,0.02536236]
[1758851468750,1.02777504,3943.0,3942.9,0.02536236]
[1758851468946,0.68607504,3943.0,3941.9,0.78861]
[1758851469145,0.59466,3942.5,3941.9,0.3323]
[1758851469351,0.1384,3942.5,3941.9,0.45631]
[1758851469547,0.3417,3942.4,3941.9,0.45631]
[1758851469748,0.3417,3942.4,3942.1,0.45629]
[1758851469950,0.1384,3943.0,3942.4,0.45626]
[1758851470250,0.54741783,3942.9,3941.5,0.1348]
[1758851470441,2.4129285,3943.1,3942.7,0.45622]
[1758851470642,0.3417,3942.9,3942.8,0.3323]
[1758851470841,0.3417,3943.4,3943.1,0.45617]
[1758851471042,0.0253,3943.6,3943.1,0.45617]
[1758851471043,0.54730074,3943.3,3943.2,0.3323]
[1758851471451,0.0253,3943.6,3943.5,0.45613]
[1758851471753,0.0253,3943.6,3943.5,0.92323]
[1758851472152,0.3417,3943.5,3943.1,0.45618]
[1758851472348,0.3417,3943.5,3943.1,0.78848]
[1758851472548,0.4801,3943.5,3943.1,0.3323]
[1758851472750,0.4801,3943.5,3942.9,0.45619]
[1758851472751,0.88955567,3943.4,3942.9,0.45619]
[1758851473058,0.0253,3943.6,3943.5,0.4671]
[1758851473251,0.57334481,3943.6,3943.5,0.4671]
[1758851473748,0.0253,3943.6,3943.5,0.4671]
[1758851474150,0.0253,3943.6,3943.5,5.4671]
[1758851476355,0.0253,3943.6,3943.5,0.3323]
[1758851476656,0.367,3943.6,3943.5,0.3323]
[1758851476858,0.0253,3943.6,3943.5,0.3323]
[1758851477544,0.367,3943.6,3943.5,0.3323]
[1758851477745,0.91618107,3943.6,3943.5,0.3323]
[1758851478953,0.91618107,3943.6,3943.4,0.45615]
[1758851478954,0.3417,3943.5,3943.4,0.45615]
[1758851479154,0.3417,3943.5,3943.0,0.3323]
[1758851479155,0.3417,3943.4,3943.0,0.3323]
[1758851479352,0.3417,3943.2,3943.0,0.45619]
[1758851479558,0.89088107,3943.1,3943.0,0.45619]
[1758851479953,0.54918107,3943.1,3942.8,0.45621]
[1758851480153,0.3417,3942.9,3942.8,0.45621]
[1758851480352,0.89088107,3942.9,3942.8,0.45621]
[1758851480661,0.89088107,3942.9,3942.8,0.78851]
[1758851482159,0.54918107,3942.9,3942.8,0.78851]
[1758851482361,0.89170926,3943.2,3943.0,0.3323]
[1758851482560,0.55000926,3943.1,3943.0,0.3323]
[1758851483564,0.55000926,3943.1,3943.0,0.4671]
[1758851483758,0.55000926,3943.1,3943.0,0.3323]
[1758851484060,0.3417,3943.0,3942.9,0.45619]
[1758851484361,7.0492533,3943.8,3943.7,0.45611]
[1758851484362,1.76798116,3943.8,3943.7,0.45611]
[1758851484561,0.3417,3945.2,3944.1,0.3323]
[1758851484764,0.3417,3945.2,3945.1,0.3323]
[1758851485064,0.3417,3945.2,3945.0,0.45595]
[1758851485065,0.03368024,3945.9,3945.0,0.45596]
[1758851485254,0.03368024,3945.9,3945.3,0.45593]
[1758851485462,0.37538024,3945.9,3945.5,0.4559]
[1758851485660,0.3417,3945.8,3945.5,0.78819]
[1758851485866,0.3417,3945.8,3945.5,0.3323]
[1758851486064,0.03368024,3945.9,3945.5,0.3323]
[1758851486270,0.3417,3945.8,3945.5,0.3323]
[1758851486465,0.03368024,3945.9,3945.5,0.3323]
[1758851486861,0.3417,3945.8,3945.5,0.3323]
[1758851487157,0.1384,3945.5,3944.7,0.3323]
[1758851487356,0.3417,3945.4,3945.0,0.45595]
[1758851487562,0.3417,3945.4,3945.0,0.78825]
[1758851487962,0.1384,3945.5,3945.0,0.78825]
[1758851488263,0.3417,3945.4,3945.0,0.45595]
[1758851488467,0.3417,3945.4,3945.1,0.3323]
[1758851488662,0.1384,3945.5,3945.1,0.3323]
[1758851488866,0.3417,3945.4,3945.1,0.3323]
[1758851489160,0.1384,3945.5,3945.1,0.3323]
[1758851489362,0.3417,3945.2,3944.0,0.1348]
[1758851489674,0.45594,3945.2,3944.4,0.45603]
[1758851489969,0.3417,3945.1,3944.4,0.45603]
[1758851490159,0.3417,3945.1,3944.5,0.45601]
[1758851490562,0.361,3945.2,3944.6,0.456]
[1758851491358,5.20419646,3945.3,3944.6,0.456]
[1758851491565,0.361,3945.2,3944.3,0.45604]
[1758851491763,0.45597,3945.0,3944.3,0.45604]
[1758851491964,0.361,3944.7,3944.1,0.45606]
[1758851492273,0.361,3944.7,3944.0,0.484]
[1758851492471,0.361,3944.7,3944.1,0.3487]
[1758851493072,0.361,3944.7,3944.5,0.3487]
[1758851493273,0.361,3944.6,3944.5,0.3487]
[1758851493470,0.361,3944.6,3943.3,0.3487]
[1758851493471,0.361,3944.4,3943.3,0.3487]
[1758851493773,0.361,3943.8,3943.3,0.3487]
[1758851493991,0.45612,3943.7,3943.0,0.93969]
[1758851494170,0.45612,3943.7,3943.1,0.45617]
[1758851494474,0.11678394,3943.7,3943.0,0.80489]
[1758851494771,0.81711,3943.8,3943.1,0.45617]
[1758851495167,0.81711,3943.8,3943.2,0.45616]
[1758851495168,0.48010479,3943.8,3943.2,0.45616]
[1758851495663,0.361,3943.5,3943.0,0.80489]
[1758851495865,0.361,3943.5,3942.7,0.45622]
[1758851495866,0.361,3943.3,3942.7,0.45622]
[1758851496270,0.54411737,3943.2,3942.7,0.45622]
[1758851496575,0.54411737,3943.1,3942.7,0.45622]
[1758851496868,0.54411737,3943.0,3942.6,0.3487]
[1758851497174,4.74825646,3943.4,3942.6,0.3487]
[1758851497175,0.54411737,3942.9,3942.6,0.3487]
[1758851497378,0.361,3942.7,3942.6,0.3487]
[1758851497572,0.90511737,3942.7,3942.6,0.3487]
[1758851498070,0.361,3942.7,3942.6,0.3487]
[1758851499365,0.361,3942.6,3942.3,0.45626]
[1758851499562,0.54426911,3942.5,3942.3,0.45626]
[1758851499760,0.361,3942.6,3942.3,0.45626]
[1758851500276,0.54432443,3942.5,3941.3,1.14097]
[1758851500470,0.54435283,3942.4,3941.6,0.3487]
[1758851500671,0.361,3942.9,3942.6,0.3487]
[1758851500870,0.54432292,3942.8,3942.7,0.3487]
[1758851502671,0.90532292,3942.8,3942.7,0.3487]
[1758851502878,0.361,3942.7,3942.2,0.45628]
[1758851503076,0.361,3942.5,3942.3,0.3487]
[1758851503275,0.45622,3942.8,3942.0,0.1353]
[1758851503276,0.361,3942.7,3942.0,0.484]
[1758851503575,0.45622,3942.8,3942.0,0.484]
[1758851503576,0.361,3942.3,3942.2,0.80498]
[1758851503973,0.361,3942.9,3942.3,0.45626]
[1758851504174,0.54405405,3942.8,3942.4,0.3487]
[1758851504377,0.361,3942.6,3942.4,0.3487]
[1758851504763,0.1352,3943.0,3942.4,0.3487]
[1758851504969,0.361,3942.8,3942.4,0.3487]
[1758851505272,0.54394211,3942.7,3942.4,0.3487]
[1758851505472,0.361,3942.9,3942.4,0.3487]
[1758851505675,0.361,3942.7,3942.4,0.3487]
[1758851505877,0.361,3942.9,3942.4,0.80495]
[1758851506073,0.361,3942.7,3942.1,0.80499]
[1758851507073,0.361,3942.9,3942.3,0.80496]
[1758851507271,0.361,3942.7,3942.3,0.3487]
[1758851507470,0.361,3942.9,3942.3,0.80497]
[1758851507769,0.361,3942.7,3942.4,0.3487]
[1758851508173,0.45623,3942.7,3942.0,0.5916]
[1758851508476,0.361,3942.4,3941.8,0.3487]
[1758851508875,0.81727,3942.4,3941.8,0.3487]
[1758851509369,0.54221018,3942.3,3942.0,0.45631]
[1758851509679,0.361,3942.3,3942.0,0.45631]
[1758851509879,0.266,3942.4,3941.8,0.80503]
[1758851510074,0.266,3942.4,3941.5,0.1353]
[1758851510075,0.45629,3942.2,3941.6,0.45635]
[1758851510377,0.361,3942.1,3941.6,0.45635]
[1758851510574,0.45633,3941.9,3941.6,0.3487]
[1758851510773,0.361,3941.8,3941.2,3.45639]
[1758851510979,0.361,3941.7,3941.2,3.80509]
[1758851511184,5.10925646,3941.9,3941.2,3.3487]
[1758851511386,0.361,3941.7,3941.2,3.3487]
[1758851511581,0.45635,3941.7,3941.2,3.3487]
[1758851511771,0.361,3941.6,3941.2,3.3487]
[1758851511974,0.45635,3941.7,3941.2,3.3487]
[1758851512173,0.45635,3941.7,3941.3,0.3487]
[1758851512372,4.88345646,3941.5,3941.2,3.0]
[1758851512575,4.88345646,3941.5,3940.4,0.3487]
[1758851512576,0.361,3941.3,3940.4,0.3487]
[1758851512871,0.361,3941.3,3939.5,0.1353]
[1758851512872,0.361,3940.6,3940.1,0.45653]
[1758851513071,0.361,3940.9,3940.1,0.80523]
[1758851513278,0.361,3940.6,3940.2,0.45651]
[1758851513478,0.266,3940.7,3940.2,0.45651]
[1758851513777,0.361,3940.6,3940.3,0.3487]
[1758851514184,0.361,3940.6,3939.5,0.1353]
[1758851514185,0.1352,3940.5,3939.9,0.80524]
[1758851514478,0.361,3940.4,3939.9,0.80524]
[1758851515077,0.361,3940.9,3939.7,4.74825646]
[1758851515388,0.43,3941.1,3940.9,0.3487]
[1758851515675,0.43,3941.1,3940.8,0.45645]
[1758851515676,0.54957311,3941.0,3940.8,0.80515]
[1758851515883,0.361,3941.4,3941.1,0.4564]
[1758851516081,0.266,3941.5,3941.1,0.4564]
[1758851516385,0.54947437,3941.4,3941.2,0.3487]
[1758851516678,0.17791371,3941.9,3941.1,0.3487]
[1758851516874,0.81557799,3941.8,3941.5,0.59166]
[1758851517074,0.54957799,3941.7,3941.6,0.3487]
[1758851517275,0.54957799,3941.7,3941.6,5.3487]
[1758851517474,0.0253,3942.3,3942.2,0.3487]
[1758851517680,0.361,3942.2,3941.9,0.3487]
[1758851517888,0.0253,3942.3,3942.0,0.1353]
[1758851518086,0.0253,3942.3,3942.2,0.3487]
[1758851518387,0.3863,3942.3,3941.6,0.80504]
[1758851518882,0.3863,3942.3,3941.6,0.3487]
[1758851519080,0.1352,3942.0,3941.4,0.45637]
[1758851519285,0.1352,3942.0,3941.5,0.3487]
[1758851519780,4.74825646,3941.7,3941.1,0.3487]
[1758851520087,0.266,3941.8,3941.1,0.3487]
[1758851520290,0.266,3941.8,3941.4,0.3416]
[1758851520584,5.25475646,3942.0,3941.5,0.3416]
[1758851520787,0.0253,3942.3,3941.5,0.1388]
[1758851520989,0.0253,3942.3,3942.0,0.1388]
[1758851521380,0.3966,3942.3,3942.0,0.1388]
[1758851521682,0.3713,3942.2,3941.4,0.3416]
[1758851521885,7.1513,3942.3,3941.4,0.3416]
[1758851521886,0.3713,3941.9,3941.4,0.3416]
[1758851522083,0.2913,3942.3,3941.0,0.1353]
[1758851522279,0.266,3942.2,3941.0,0.1353]
[1758851522477,0.266,3942.2,3941.7,0.3416]
[1758851522785,0.1366,3942.0,3941.2,0.3416]
[1758851522990,0.3713,3941.9,3941.2,0.3416]
[1758851523188,4.88485646,3942.0,3941.2,0.3416]
[1758851523495,0.3713,3941.4,3940.8,0.3416]
[1758851523785,0.3713,3941.4,3940.8,0.79804]
[1758851524490,0.3713,3941.4,3940.8,0.3416]
[1758851524687,4.88485646,3941.5,3940.8,0.3416]
[1758851524688,0.3703,3941.2,3940.8,0.3416]
[1758851524989,0.3703,3941.1,3940.8,0.3416]
[1758851525191,0.3703,3941.2,3940.6,0.45646]
[1758851525692,0.3703,3941.2,3940.5,0.5019]
[1758851525890,0.45647,3940.7,3940.3,0.3666]
[1758851526094,0.136,3940.5,3939.9,0.3666]
[1758851526398,0.266,3940.7,3940.1,0.45652]
[1758851526582,0.45648,3940.5,3939.8,0.82315]
[1758851526986,0.3703,3940.6,3939.9,0.45654]
[1758851527292,0.45649,3940.5,3939.8,0.3666]
[1758851527497,0.3703,3940.4,3939.8,0.3666]
[1758851527787,0.59249,3940.5,3939.8,0.3666]
[1758851527788,4.74825646,3940.3,3939.8,0.3666]
[1758851527993,0.3703,3940.2,3939.5,0.1388]
[1758851528187,0.3703,3940.2,3939.6,0.3666]
[1758851528593,0.3703,3940.2,3939.9,0.3666]
[1758851528788,0.3703,3940.2,3939.5,0.3666]
[1758851528789,0.3703,3940.1,3939.5,0.3666]
[1758851528988,0.3703,3939.9,3939.5,0.3666]
[1758851529591,0.91972453,3939.8,3939.3,0.3666]
[1758851529781,0.91972453,3939.7,3939.3,0.3666]
[1758851529984,0.54942453,3939.6,3939.3,0.45661]
[1758851530192,0.54942453,3939.6,3939.5,0.3666]
[1758851530381,0.91972453,3939.6,3939.5,0.3666]
[1758851531295,0.54942453,3939.6,3939.5,0.5132]
[1758851531485,0.266,3939.9,3939.6,0.45659]
[1758851531691,0.54908039,3939.8,3939.7,0.3666]
[1758851532089,5.34068646,3941.0,3939.8,0.3666]
[1758851532289,0.81498012,3940.9,3939.8,0.3666]
[1758851532489,0.3703,3940.6,3940.0,0.45653]
[1758851532691,0.3703,3940.4,3940.2,0.3666]
[1758851532896,0.91928012,3940.3,3939.9,0.45655]
[1758851533097,0.91928012,3940.3,3939.5,0.1466]
[1758851533098,0.3703,3940.0,3939.5,0.1466]
[1758851533289,5.29723658,3940.2,3939.6,0.3666]
[1758851533290,0.3703,3939.8,3939.6,0.3666]
[1758851533486,0.266,3940.4,3939.6,0.3666]
[1758851533487,0.54898012,3939.7,3939.6,0.3666]
[1758851533696,0.54908895,3940.2,3939.9,0.45655]
[1758851533890,0.54908895,3940.1,3940.0,0.3666]
[1758851534205,0.54908895,3940.1,3940.0,0.5132]
[1758851534993,0.54908895,3940.1,3940.0,5.5132]
[1758851535193,0.234,3941.0,3940.6,0.45646]
[1758851535409,0.8267,3941.3,3941.1,0.3666]
[1758851535410,0.266,3941.3,3941.1,0.3666]
[1758851535898,0.6363,3941.3,3941.1,0.3666]
[1758851536099,0.266,3941.3,3941.1,0.3666]
[1758851536396,0.3703,3941.2,3940.6,0.82307]
[1758851537298,0.82671,3941.2,3940.6,0.82307]
[1758851537516,0.3703,3941.2,3940.6,0.3666]
[1758851537694,0.3703,3940.5,3940.1,0.3666]
[1758851537892,4.74825646,3940.8,3939.8,0.3666]
[1758851538196,0.5063,3941.0,3940.4,0.3666]
[1758851538197,0.6363,3941.0,3940.4,0.3666]
[1758851538595,4.74825646,3940.8,3940.3,0.45649]
[1758851538899,0.3703,3940.7,3940.4,0.3666]
[1758851539096,0.3703,3940.7,3940.5,0.3666]
[1758851539296,0.3703,3940.7,3940.4,0.3666]
[1758851539499,0.3703,3940.7,3940.5,0.3666]
[1758851539690,4.74825646,3940.8,3940.5,0.3666]
[1758851539891,5.20470646,3940.8,3940.2,0.82311]
[1758851540091,0.3703,3940.6,3940.0,0.45654]
[1758851540494,0.3703,3940.6,3939.8,0.3666]
[1758851540495,0.3703,3940.3,3939.8,0.82316]
[1758851540698,4.74825646,3940.4,3939.8,0.82316]
[1758851541098,0.3703,3940.3,3939.8,0.45656]
[1758851541293,4.74825646,3940.4,3939.8,0.45656]
[1758851541501,4.74825646,3940.4,3939.7,0.3666]
[1758851541502,0.3703,3940.3,3939.7,0.3666]
[1758851542095,0.3703,3940.3,3939.0,0.1466]
[1758851542096,0.3703,3939.9,3939.2,0.3666]
[1758851542298,4.74825646,3939.6,3939.2,0.3666]
[1758851542595,5.52055646,3940.0,3939.4,0.3666]
[1758851542797,5.25455646,3940.0,3939.5,0.45659]
[1758851542999,0.136,3940.5,3939.8,0.3666]
[1758851543000,0.266,3939.9,3939.8,0.3666]
[1758851543205,0.266,3940.2,3939.7,0.3666]
[1758851543403,0.266,3940.2,3939.6,0.3666]
[1758851544400,6.56161513,3940.9,3940.4,0.3666]
[1758851544603,6.56161513,3940.9,3940.5,0.3666]
[1758851544905,0.3703,3940.7,3940.1,0.45652]
[1758851545304,0.3703,3940.7,3940.4,0.45649]
[1758851545501,0.3703,3940.7,3940.6,0.3666]
[1758851546394,0.2913,3940.8,3940.4,0.3666]
[1758851546798,0.0253,3940.8,3940.7,0.3666]
[1758851547103,0.5836148,3940.8,3940.7,0.3666]
[1758851548295,0.9539148,3940.8,3940.4,0.45649]
[1758851548496,0.5583148,3940.7,3940.6,0.3666]
[1758851550009,0.5583148,3940.7,3940.6,5.3605]
[1758851550806,0.0253,3940.8,3940.7,0.81696]
[1758851551005,0.5840664,3940.8,3940.7,0.81696]
[1758851551398,0.0253,3940.8,3940.7,0.81696]
[1758851551698,0.58404173,3940.8,3940.7,0.81696]
[1758851552297,0.0253,3940.8,3940.7,0.81696]
[1758851552492,0.58434376,3940.8,3940.7,0.81696]
[1758851552697,0.58434167,3940.8,3940.7,0.81696]
[1758851552896,0.58434167,3940.8,3940.7,1.08296]
[1758851553117,0.94644167,3940.8,3940.1,0.3605]
[1758851553299,0.55904167,3940.7,3940.5,0.81697]
[1758851553505,0.3621,3940.6,3940.5,0.81697]
[1758851553804,0.92114167,3940.6,3940.4,0.3605]
[1758851554104,0.55904167,3940.5,3940.4,0.3605]
[1758851554401,0.92114167,3940.5,3940.2,0.45651]
[1758851554604,0.55904167,3940.4,3940.2,0.81701]
[1758851554804,0.55904167,3940.3,3940.2,0.81701]
[1758851555799,0.92114167,3940.3,3940.2,0.81701]
[1758851557101,0.92114167,3940.3,3940.2,0.45651]
[1758851557608,0.55904167,3940.3,3940.2,0.81701]
[1758851557802,0.92114167,3940.6,3940.2,0.81701]
[1758851558008,0.3621,3940.4,3940.2,0.81701]
[1758851558210,0.92114167,3940.3,3940.2,0.81701]